bitfinex/quotes_SOLUSD_20250528
["timestamp","ask_amount","ask_price","bid_price","bid_amount"]
[1748439612506,5.74613572,174.03,174.02,26.0]
[1748439612718,38.6141151,174.03,174.02,26.0]
[1748439612881,5.74613572,174.03,173.98,32.86797938]
[1748439613396,38.6141151,174.03,173.99,58.86797938]
[1748439613587,32.86797938,174.02,173.99,26.0]
[1748439613791,5.74679616,174.01,173.99,26.0]
[1748439614305,5.74679616,174.01,173.97,32.86797938]
[1748439614474,5.7465147,174.02,174.0,26.0]
[1748439614677,5.74514535,174.06,174.02,26.0]
[1748439614882,32.86797938,174.03,174.02,26.0]
[1748439615280,5.74514535,174.06,174.02,26.0]
[1748439615503,32.86797938,174.03,174.02,26.0]
[1748439615707,38.6141151,174.03,174.02,26.0]
[1748439616786,38.6141151,174.03,173.99,26.0]
[1748439617100,32.86797938,174.0,173.95,43.30797938]
[1748439617409,32.86797938,174.01,173.99,26.0]
[1748439618279,38.61503731,174.01,173.99,26.0]
[1748439619062,5.74705793,174.01,173.99,26.0]
[1748439619925,38.61503731,174.01,173.99,26.0]
[1748439620527,14.36337931,174.06,173.99,26.0]
[1748439620726,32.86797938,174.04,173.99,58.86797938]
[1748439620928,32.86797938,174.01,173.98,26.0]
[1748439621143,18.64964886,174.04,173.95,10.44]
[1748439621347,32.86797938,173.96,173.91,47.8]
[1748439621654,32.86797938,173.94,173.9,10.44]
[1748439621823,32.86797938,173.94,173.93,26.0]
[1748439622146,1.6389,173.99,173.93,26.0]
[1748439622320,32.86797938,173.95,173.93,26.0]
[1748439623035,16.00768917,173.99,173.93,26.0]
[1748439623219,32.86797938,173.97,173.95,26.0]
[1748439623419,38.61576648,173.98,173.94,26.0]
[1748439623646,32.86797938,173.96,173.94,26.0]
[1748439624326,32.86797938,173.97,173.94,26.0]
[1748439624727,32.86797938,173.96,173.94,26.0]
[1748439625043,38.61675776,173.95,173.94,26.0]
[1748439625751,32.86797938,173.95,173.94,26.0]
[1748439625956,38.61675776,173.95,173.94,26.0]
[1748439627224,5.74851031,173.96,173.94,26.0]
[1748439627545,38.61648969,173.96,173.94,26.0]
[1748439627772,32.86797938,173.95,173.94,26.0]
[1748439628042,5.74851031,173.96,173.94,26.0]
[1748439628233,38.61648969,173.96,173.94,26.0]
[1748439629849,32.86797938,173.95,173.94,26.0]
[1748439631126,5.74712643,174.0,173.94,58.86797938]
[1748439631334,5.74712643,174.0,173.95,32.86797938]
[1748439631556,38.61510581,174.0,173.95,32.86797938]
[1748439632764,38.61510581,174.0,173.94,73.8]
[1748439632765,32.86797938,173.98,173.94,106.66797938]
[1748439633141,32.86797938,173.99,173.94,106.66797938]
[1748439633540,5.74712643,174.0,173.97,32.86797938]
[1748439633746,5.74679616,174.01,173.97,26.0]
[1748439634059,5.74679616,174.01,173.97,48.26830442]
[1748439634376,5.74679616,174.01,173.98,22.26830442]
[1748439634556,151.6506,174.03,174.0,22.26830442]
[1748439634557,5.74647974,174.02,174.0,22.26830442]
[1748439635860,5.74647974,174.02,173.98,47.8]
[1748439636058,5.74647974,174.02,174.0,32.98091132]
[1748439636373,5.74647974,174.02,173.98,47.8]
[1748439636551,5.74647974,174.02,173.98,80.78091132]
[1748439636872,5.74647974,174.02,173.98,47.8]
[1748439637073,5.74647974,174.02,173.99,32.98091132]
[1748439637374,5.74647974,174.02,173.98,47.8]
[1748439637375,38.72739106,174.02,173.98,47.8]
[1748439637563,53.09355586,174.02,173.98,47.8]
[1748439638079,32.98091132,173.99,173.92,47.8]
[1748439638285,32.98091132,173.99,173.94,32.98091132]
[1748439638446,32.98091132,174.01,173.96,32.98091132]
[1748439638846,32.98091132,174.0,173.95,58.98091132]
[1748439639467,32.98091132,173.99,173.95,26.0]
[1748439639850,18.64964886,174.01,173.95,26.0]
[1748439640051,5.74752312,173.99,173.95,58.98091132]
[1748439640247,5.74752312,173.99,173.96,32.98091132]
[1748439640463,5.747187,174.0,173.96,32.98091132]
[1748439640664,5.74688385,174.01,173.97,32.98091132]
[1748439641188,38.72779517,174.01,173.96,32.98091132]
[1748439641354,5.74688385,174.01,173.99,26.0]
[1748439642757,38.72779517,174.01,173.99,26.0]
[1748439643082,32.98091132,174.0,173.97,26.0]
[1748439643272,32.98091132,173.99,173.96,47.8]
[1748439643475,32.98091132,174.0,173.96,47.8]
[1748439643987,32.98091132,173.99,173.96,47.8]
[1748439644191,5.7477871,173.98,173.96,47.8]
[1748439644662,38.72869842,173.98,173.95,26.0]
[1748439644867,32.98091132,173.97,173.95,26.0]
[1748439645363,32.98091132,173.96,173.89,49.369]
[1748439645583,32.98091132,173.95,173.89,80.78091132]
[1748439645760,32.98091132,173.93,173.89,47.8]
[1748439645951,32.98091132,173.94,173.9,26.0]
[1748439646156,5.74877838,173.95,173.9,58.98091132]
[1748439646482,32.98091132,173.97,173.92,32.98091132]
[1748439646683,32.98091132,173.95,173.9,26.0]
[1748439646877,32.98091132,173.92,173.86,80.78091132]
[1748439647184,18.64964886,173.97,173.87,32.98091132]
[1748439647185,32.98091132,173.93,173.87,32.98091132]
[1748439647359,18.64964886,173.97,173.85,18.3052]
[1748439647360,20.11725485,173.98,173.91,58.98091132]
[1748439647564,32.98091132,173.97,173.92,32.98091132]
[1748439647783,32.98091132,173.96,173.91,26.0]
[1748439647970,32.98091132,173.96,173.91,58.98091132]
[1748439648168,5.74877838,173.95,173.91,58.98091132]
[1748439648370,5.74877838,173.95,173.91,26.0]
[1748439648579,5.74877838,173.95,173.91,58.98091132]
[1748439649085,32.98091132,173.93,173.91,26.0]
[1748439649662,32.98091132,173.94,173.91,26.0]
[1748439650274,32.98091132,173.94,173.85,18.3052]
[1748439650275,32.98091132,173.92,173.88,26.0]
[1748439650471,32.98091132,173.92,173.9,26.0]
[1748439651769,32.98091132,173.91,173.9,26.0]
[1748439651969,32.98091132,173.91,173.85,10.36]
[1748439651970,32.98091132,173.91,173.88,26.0]
[1748439652171,32.98091132,173.9,173.88,26.0]
[1748439652392,5.75076197,173.89,173.88,26.0]
[1748439655068,18.64964886,173.88,173.78,10.36]
[1748439655274,5.75076197,173.89,173.84,32.98091132]
[1748439655473,38.73167329,173.89,173.85,58.98091132]
[1748439655677,5.75076197,173.89,173.85,58.98091132]
[1748439656091,32.98091132,173.92,173.87,32.98091132]
[1748439656270,32.98091132,173.91,173.86,58.98091132]
[1748439656477,32.98091132,173.9,173.86,58.98091132]
[1748439656675,32.98091132,173.9,173.88,26.0]
[1748439657085,5.75040292,173.91,173.88,26.0]
[1748439657270,5.74943942,173.93,173.88,26.0]
[1748439657674,32.98091132,173.9,173.88,26.0]
[1748439658566,32.98091132,173.94,173.88,26.0]
[1748439658872,5.74910888,173.94,173.89,32.98091132]
[1748439659178,32.98091132,173.93,173.88,26.0]
[1748439659382,32.98091132,173.93,173.88,58.98091132]
[1748439660196,20.1218811,173.94,173.88,58.98091132]
[1748439660399,5.74910888,173.94,173.89,32.98091132]
[1748439660600,5.74910888,173.94,173.91,32.98091132]
[1748439660897,32.98091132,173.93,173.89,32.98091132]
[1748439661269,38.7300202,173.94,173.89,32.98091132]
[1748439661469,38.7300202,173.94,173.89,80.78091132]
[1748439661886,5.74910888,173.94,173.9,22.28773227]
[1748439662280,5.74910888,173.94,173.91,22.28773227]
[1748439662880,5.74910888,173.94,173.91,96.08773227]
[1748439663082,5.74858763,173.96,173.93,22.28773227]
[1748439664288,5.74858763,173.96,173.92,22.28773227]
[1748439665308,5.74819711,173.97,173.94,22.28773227]
[1748439665898,5.74785838,173.98,173.95,22.28773227]
[1748439666483,5.74785838,173.98,173.94,47.8]
[1748439666686,22.28773227,173.97,173.94,47.8]
[1748439667085,22.28773227,173.95,173.91,73.8]
[1748439667276,22.28773227,173.96,173.91,96.08773227]
[1748439667674,20.11732613,173.98,173.93,22.28773227]
[1748439667881,22.28773227,173.96,173.92,22.28773227]
[1748439668101,22.28773227,173.96,173.91,96.08773227]
[1748439668579,5.74877838,173.95,173.91,96.08773227]
[1748439668997,20.12072434,173.95,173.91,70.08773227]
[1748439669585,42.40845661,173.95,173.91,96.08773227]
[1748439669781,42.40845661,173.95,173.91,73.8]
[1748439670090,42.40845661,173.95,173.91,96.08773227]
[1748439670491,42.40845661,173.95,173.91,48.28773227]
[1748439671289,20.12072434,173.95,173.91,26.0]
[1748439671480,42.40845661,173.95,173.91,26.0]
[1748439671690,42.40845661,173.95,173.91,48.28773227]
[1748439671897,42.40845661,173.95,173.91,26.0]
[1748439672091,42.40845661,173.95,173.91,48.28773227]
[1748439672622,42.40845661,173.95,173.91,26.0]
[1748439672843,42.40845661,173.95,173.89,58.16]
[1748439672844,22.28773227,173.94,173.89,58.16]
[1748439673123,22.28773227,173.94,173.89,96.08773227]
[1748439674811,22.28773227,173.92,173.89,73.8]
[1748439675185,22.28773227,173.92,173.89,26.0]
[1748439675813,18.64964886,173.94,173.89,26.0]
[1748439675994,22.28773227,173.92,173.89,26.0]
[1748439676798,5.75010062,173.91,173.89,26.0]
[1748439677304,42.41308445,173.91,173.88,26.0]
[1748439678116,20.12535218,173.91,173.88,26.0]
[1748439679023,22.28773227,173.89,173.81,11.8107]
[1748439679211,22.28773227,173.88,173.81,11.8107]
[1748439679408,20.12535218,173.91,173.81,11.8107]
[1748439679409,20.12535218,173.91,173.82,37.04]
[1748439679698,22.28773227,173.87,173.85,26.0]
[1748439679920,22.28773227,173.86,173.85,26.0]
[1748439680106,22.28773227,173.86,173.79,22.28773227]
[1748439680301,22.28773227,173.86,173.76,10.26]
[1748439680302,22.28773227,173.8,173.76,10.26]
[1748439680509,22.28773227,173.8,173.76,22.28773227]
[1748439680820,20.13229795,173.85,173.79,26.0]
[1748439681023,22.28773227,173.8,173.75,37.1]
[1748439681322,22.28773227,173.8,173.76,22.28773227]
[1748439681510,22.28773227,173.8,173.75,37.1]
[1748439681818,22.28773227,173.8,173.78,26.0]
[1748439682521,20.13229795,173.85,173.8,26.0]
[1748439682714,5.75208513,173.85,173.8,48.28773227]
[1748439682932,5.75178919,173.86,173.83,48.28773227]
[1748439683105,22.28773227,173.88,173.83,48.28773227]
[1748439683512,5.75076197,173.89,173.86,26.0]
[1748439684538,5.75076197,173.89,173.86,22.28773227]
[1748439684841,23.94983227,173.9,173.86,26.0]
[1748439684842,5.75052782,173.9,173.86,26.0]
[1748439685020,5.75052782,173.9,173.87,22.28773227]
[1748439685531,5.75052782,173.9,173.86,48.28773227]
[1748439685532,28.03826009,173.9,173.86,48.28773227]
[1748439685935,5.75052782,173.9,173.86,59.03454387]
[1748439687045,10.26,173.93,173.88,33.03454387]
[1748439687229,38.78431387,173.92,173.88,33.03454387]
[1748439687538,5.74977,173.92,173.89,59.03454387]
[1748439688222,38.78431387,173.92,173.89,26.0]
[1748439688431,38.78431387,173.92,173.88,59.03454387]
[1748439688728,5.74977,173.92,173.88,59.03454387]
[1748439688933,38.78431387,173.92,173.88,59.03454387]
[1748439689332,5.74977,173.92,173.88,26.0]
[1748439689536,39.45634387,173.96,173.91,33.03454387]
[1748439690033,6.4218,173.96,173.91,33.03454387]
[1748439690215,38.78332225,173.95,173.91,33.03454387]
[1748439690421,5.74877838,173.95,173.91,33.03454387]
[1748439690627,5.74877838,173.95,173.93,33.03454387]
[1748439691031,5.74836104,173.97,173.94,33.03454387]
[1748439691428,5.74836104,173.97,173.93,33.03454387]
[1748439691632,5.74836104,173.97,173.91,26.0]
[1748439691633,5.74836104,173.97,173.94,33.03454387]
[1748439691873,5.74836104,173.97,173.91,26.0]
[1748439691874,11.7948,174.02,173.96,33.03454387]
[1748439692019,11.7948,174.02,173.97,33.03454387]
[1748439692226,38.78134003,174.01,173.96,33.03454387]
[1748439692649,33.03454387,174.0,173.96,33.03454387]
[1748439693148,33.03454387,174.0,173.95,33.03454387]
[1748439693361,5.74811749,173.97,173.96,26.0]
[1748439693855,5.74712643,174.0,173.96,59.03454387]
[1748439694025,5.74712643,174.0,173.98,33.03454387]
[1748439695336,14.36500772,174.04,173.99,33.03454387]
[1748439695542,47.39955159,174.04,174.0,33.03454387]
[1748439695740,33.03454387,174.03,173.99,26.0]
[1748439696233,33.03454387,174.03,173.99,59.03454387]
[1748439696440,14.36500772,174.04,173.99,59.03454387]
[1748439696667,33.03454387,174.03,173.99,59.03454387]
[1748439697148,14.36500772,174.04,173.99,59.03454387]
[1748439697452,53.14535715,174.04,173.99,59.03454387]
[1748439697837,1.584,174.07,174.02,59.03454387]
[1748439698066,5.74520887,174.06,174.05,33.03454387]
[1748439698396,5.74520887,174.06,174.04,33.03454387]
[1748439698571,5.74520887,174.06,174.02,33.03454387]
[1748439698767,38.77975274,174.06,174.02,33.03454387]
[1748439699655,53.14139743,174.07,174.02,33.03454387]
[1748439700069,53.14139743,174.07,174.03,26.0]
[1748439700868,53.14139743,174.07,174.03,59.03454387]
[1748439701168,5.7448153,174.07,174.04,33.03454387]
[1748439701355,255.74449945,174.08,174.07,26.0]
[1748439701688,255.74449945,174.08,174.07,33.03454387]
[1748439701878,250.0,174.08,174.07,33.03454387]
[1748439702172,255.74448529,174.08,174.07,33.03454387]
[1748439702483,255.74448529,174.08,174.06,26.0]
[1748439702484,255.74448529,174.08,174.06,33.03454387]
[1748439702960,255.74448529,174.08,174.05,59.03454387]
[1748439703494,33.03454387,174.06,174.0,26.0]
[1748439703659,38.7800193,174.05,174.0,33.03454387]
[1748439703858,38.7800193,174.05,174.04,26.0]
[1748439704752,38.7800193,174.05,174.0,33.03454387]
[1748439704982,33.03454387,174.04,174.0,33.03454387]
[1748439705157,33.03454387,174.02,173.97,33.03454387]
[1748439705372,33.03454387,174.01,173.97,33.03454387]
[1748439705597,33.03454387,174.03,174.01,26.0]
[1748439705758,33.03454387,174.04,174.01,26.0]
[1748439705958,33.03454387,174.05,174.01,59.03454387]
[1748439706393,33.03454387,174.05,174.03,26.0]
[1748439706686,5.74514535,174.06,174.04,26.0]
[1748439706981,5.74490284,174.07,174.06,26.0]
[1748439707188,250.0,174.08,174.06,59.03454387]
[1748439707391,250.0,174.08,174.06,33.03454387]
[1748439708286,255.74458979,174.08,174.06,33.03454387]
[1748439708459,255.74458979,174.08,174.05,59.03454387]
[1748439709907,250.0,174.08,174.06,33.03454387]
[1748439710860,33.03454387,174.07,173.99,6.6557]
[1748439711180,33.03454387,174.06,174.05,26.0]
[1748439711566,288.77903309,174.08,174.05,26.0]
[1748439711867,288.77903309,174.08,174.07,26.0]
[1748439712477,250.0,174.08,174.06,59.03454387]
[1748439712681,250.0,174.08,174.06,33.03454387]
[1748439713005,33.03454387,174.07,173.99,6.6557]
[1748439713208,250.0,174.08,174.03,26.0]
[1748439713383,250.0,174.08,174.07,26.0]
[1748439714016,288.77902916,174.08,174.07,26.0]
[1748439714513,303.14024239,174.08,173.99,37.02]
[1748439714718,33.03454387,174.05,174.04,26.0]
[1748439715081,33.03454387,174.05,174.01,47.8]
[1748439715282,255.74448529,174.08,174.05,26.0]
[1748439715505,288.77902916,174.08,174.05,26.0]
[1748439715700,33.03454387,174.07,174.06,26.0]
[1748439715906,27.99853398,174.07,174.06,26.0]
[1748439716107,277.99830488,174.08,174.07,26.0]
[1748439716313,255.7445862,174.08,174.07,26.0]
[1748439716497,277.99830488,174.08,174.07,26.0]
[1748439718187,277.99830488,174.08,174.06,26.0]
[1748439720287,22.25371868,174.07,174.05,26.0]
[1748439720910,255.7445862,174.08,174.05,26.0]
[1748439721221,22.25371868,174.06,174.02,47.8]
[1748439721539,22.25371868,174.03,174.02,47.8]
[1748439721736,22.25371868,174.03,174.02,73.8]
[1748439722033,27.9998544,174.03,174.02,47.8]
[1748439722234,27.9998544,174.03,173.97,70.05371868]
[1748439722405,22.25371868,174.02,174.0,26.0]
[1748439722604,22.25371868,174.01,173.98,26.0]
[1748439722799,22.25371868,174.01,173.99,26.0]
[1748439723013,22.25371868,174.0,173.99,26.0]
[1748439723325,22.25371868,174.0,173.97,26.0]
[1748439723620,20.11147502,174.03,173.97,26.0]
[1748439723621,22.25371868,173.99,173.97,26.0]
[1748439723921,22.25371868,173.99,173.98,26.0]
[1748439724123,5.74646592,174.02,173.99,26.0]
[1748439724330,22.25371868,174.0,173.99,26.0]
[1748439725006,22.25371868,174.0,173.98,26.0]
[1748439725210,22.25371868,174.0,173.99,26.0]
[1748439726919,28.00084511,174.0,173.99,26.0]
[1748439727219,28.00084511,174.0,173.98,26.0]
[1748439727429,22.25371868,173.99,173.98,26.0]
[1748439727618,22.25371868,173.99,173.97,26.0]
[1748439727825,22.25371868,173.99,173.98,26.0]
[1748439728247,42.3698173,173.99,173.88,142.1353]
[1748439728425,22.25371868,173.94,173.9,36.88]
[1748439728621,22.25371868,173.94,173.9,106.93371868]
[1748439728926,22.25371868,173.95,173.93,26.0]
[1748439729834,22.25371868,173.96,173.93,26.0]
[1748439730334,22.25371868,173.97,173.93,48.25371868]
[1748439730541,22.25371868,173.97,173.94,26.0]
[1748439731232,22.25371868,173.96,173.94,26.0]
[1748439731440,22.25371868,173.96,173.95,26.0]
[1748439732535,5.74679616,174.01,173.96,26.0]
[1748439732729,22.25371868,174.0,173.98,26.0]
[1748439734053,5.74585992,174.04,174.02,26.0]
[1748439734223,27.9995786,174.04,174.02,26.0]
[1748439734630,22.25371868,174.04,174.02,26.0]
[1748439734850,22.25371868,174.04,174.03,26.0]
[1748439736150,5.74613572,174.03,174.0,26.0]
[1748439736339,22.25371868,174.01,174.0,26.0]
[1748439736956,22.25371868,174.01,173.94,10.12]
[1748439737165,22.25371868,173.97,173.96,26.0]
[1748439737738,20.11147502,174.03,173.96,26.0]
[1748439737739,22.25371868,173.98,173.96,26.0]
[1748439737943,33.00332411,173.98,173.96,26.0]
[1748439738636,38.75121485,173.98,173.96,26.0]
[1748439739365,33.00332411,173.97,173.95,26.0]
[1748439739541,33.00332411,173.96,173.95,26.0]
[1748439739742,33.00332411,173.97,173.95,26.0]
[1748439739957,38.75177202,173.96,173.94,26.0]
[1748439740766,33.00332411,173.95,173.94,26.0]
[1748439740949,33.00332411,173.95,173.91,47.8]
[1748439741145,33.00332411,173.92,173.91,26.0]
[1748439742051,38.75309411,173.92,173.91,26.0]
[1748439743066,38.75309411,173.92,173.86,33.00332411]
[1748439743275,38.75309411,173.92,173.84,11.7428]
[1748439743276,33.00332411,173.88,173.84,10.12]
[1748439743646,33.00332411,173.88,173.87,26.0]
[1748439744066,5.75142347,173.87,173.82,33.00332411]
[1748439744246,38.75474758,173.87,173.82,33.00332411]
[1748439744447,33.00332411,173.86,173.85,26.0]
[1748439744652,33.00332411,173.86,173.8,33.00332411]
[1748439744850,33.00332411,173.85,173.8,33.00332411]
[1748439745066,33.00332411,173.85,173.83,26.0]
[1748439746063,5.75076197,173.89,173.83,26.0]
[1748439746260,33.00332411,173.86,173.83,26.0]
[1748439746847,33.00332411,173.85,173.83,26.0]
[1748439747049,5.75010062,173.91,173.87,26.0]
[1748439747371,33.00332411,173.89,173.87,26.0]
[1748439747763,5.75010062,173.91,173.85,33.00332411]
[1748439747953,33.00332411,173.89,173.88,26.0]
[1748439748466,38.7538213,173.9,173.88,26.0]
[1748439749248,38.7538213,173.9,173.86,26.0]
[1748439749473,38.7538213,173.9,173.88,26.0]
[1748439749666,33.00332411,173.89,173.88,26.0]
[1748439749862,33.00332411,173.89,173.86,26.0]
[1748439750072,33.00332411,173.87,173.86,26.0]
[1748439750274,5.75175428,173.86,173.81,47.8]
[1748439750481,33.00332411,173.84,173.81,47.8]
[1748439750682,33.00332411,173.84,173.83,26.0]
[1748439750983,5.75175428,173.86,173.83,26.0]
[1748439751151,33.00332411,173.85,173.83,26.0]
[1748439751479,5.75175428,173.86,173.85,26.0]
[1748439751646,53.1344641,173.86,173.79,57.92]
[1748439751843,33.00332411,173.81,173.79,57.92]
[1748439752076,33.00332411,173.81,173.79,47.8]
[1748439752255,5.75373993,173.8,173.79,47.8]
[1748439752850,5.75373993,173.8,173.77,33.00332411]
[1748439752851,5.75373993,173.8,173.77,47.8]
[1748439753066,38.75706404,173.8,173.77,47.8]
[1748439753274,5.75373993,173.8,173.79,26.0]
[1748439753582,5.75373993,173.8,173.76,34.62372411]
[1748439753753,5.75373993,173.8,173.79,26.0]
[1748439753956,51.2791246,173.87,173.8,26.0]
[1748439754167,33.00332411,173.82,173.78,33.00332411]
[1748439754477,33.00332411,173.82,173.8,26.0]
[1748439754777,38.75644832,173.82,173.8,26.0]
[1748439755271,33.00332411,173.81,173.8,26.0]
[1748439755455,33.00332411,173.81,173.79,26.0]
[1748439756293,33.00332411,173.81,173.8,26.0]
[1748439757273,5.75175428,173.86,173.8,26.0]
[1748439757656,33.00332411,173.82,173.8,26.0]
[1748439758078,5.75175428,173.86,173.8,26.0]
[1748439758281,33.00332411,173.82,173.8,26.0]
[1748439758485,33.00332411,173.81,173.8,26.0]
[1748439759879,5.75175428,173.86,173.81,26.0]
[1748439759880,22.31779387,173.82,173.81,26.0]
[1748439761471,5.75286626,173.83,173.81,26.0]
[1748439761667,22.31779387,173.82,173.8,26.0]
[1748439761883,22.31779387,173.81,173.8,26.0]
[1748439762091,22.31779387,173.81,173.79,26.0]
[1748439762590,28.07120276,173.81,173.8,26.0]
[1748439763084,28.07120276,173.81,173.76,47.8]
[1748439763272,22.31779387,173.79,173.78,26.0]
[1748439763673,22.31779387,173.79,173.69,11.0182359]
[1748439764002,22.31779387,173.79,173.68,1.6321]
[1748439764003,22.31779387,173.75,173.73,26.0]
[1748439764685,22.31779387,173.74,173.72,26.0]
[1748439764890,22.31779387,173.74,173.7,22.31779387]
[1748439765398,22.31779387,173.74,173.73,26.0]
[1748439765607,22.31779387,173.75,173.73,26.0]
[1748439766116,5.75440211,173.78,173.74,26.0]
[1748439766320,33.08701014,173.77,173.76,26.0]
[1748439766682,33.08701014,173.79,173.78,26.0]
[1748439766878,5.75307789,173.82,173.78,26.0]
[1748439767086,33.08701014,173.8,173.79,26.0]
[1748439767986,10.16,173.83,173.79,26.0]
[1748439767987,15.91280083,173.83,173.79,26.0]
[1748439768215,33.08701014,173.82,173.79,26.0]
[1748439768703,37.02,173.87,173.77,33.08701014]
[1748439768704,5.75247319,173.84,173.82,26.0]
[1748439769032,33.08701014,173.83,173.82,26.0]
[1748439770000,33.08701014,173.83,173.8,26.0]
[1748439770206,33.08701014,173.81,173.8,26.0]
[1748439770891,38.84041903,173.81,173.78,26.0]
[1748439771396,33.08701014,173.79,173.78,26.0]
[1748439772284,33.08701014,173.8,173.78,26.0]
[1748439772898,5.754071,173.79,173.78,26.0]
[1748439773339,38.84108114,173.79,173.77,26.0]
[1748439773528,38.84108114,173.79,173.73,33.08701014]
[1748439773529,33.08701014,173.78,173.71,33.08701014]
[1748439773715,33.08701014,173.75,173.74,26.0]
[1748439775304,38.84240582,173.75,173.74,26.0]
[1748439775806,38.84240582,173.75,173.73,26.0]
[1748439776025,33.08701014,173.74,173.73,26.0]
[1748439776205,33.08701014,173.74,173.69,10.16]
[1748439776411,33.08701014,173.72,173.69,10.16]
[1748439776651,33.08701014,173.72,173.7,26.0]
[1748439777322,33.08701014,173.72,173.66,19.33131161]
[1748439777323,33.08701014,173.71,173.66,12.71841161]
[1748439777632,33.08701014,173.7,173.69,26.0]
[1748439778507,33.08701014,173.71,173.69,26.0]
[1748439779616,33.08701014,173.72,173.69,26.0]
[1748439779826,33.08701014,173.72,173.71,26.0]
[1748439780416,33.08701014,173.72,173.69,26.0]
[1748439780619,33.08701014,173.7,173.69,26.0]
[1748439780822,33.08701014,173.71,173.69,26.0]
[1748439781725,20.14388488,173.75,173.67,59.08701014]
[1748439781928,33.08701014,173.71,173.67,59.08701014]
[1748439782127,33.08701014,173.71,173.69,26.0]
[1748439782335,33.08701014,173.7,173.66,33.08701014]
[1748439782522,33.08701014,173.7,173.69,26.0]
[1748439782728,33.08701014,173.7,173.68,26.0]
[1748439783137,20.14388488,173.75,173.68,26.0]
[1748439783340,33.08701014,173.71,173.68,26.0]
[1748439783641,5.75654983,173.72,173.68,26.0]
[1748439783941,33.08701014,173.71,173.7,26.0]
[1748439785638,38.84373111,173.71,173.7,26.0]
[1748439788027,28.10588834,173.71,173.7,26.0]
[1748439788432,22.34916737,173.71,173.7,26.0]
[1748439788636,28.10588834,173.71,173.7,26.0]
[1748439789354,22.34916737,173.71,173.7,26.0]
[1748439790163,20.14968335,173.7,173.61,1.6301]
[1748439790449,22.34916737,173.65,173.64,26.0]
[1748439790623,22.34916737,173.65,173.6,23.30861732]
[1748439790624,22.34916737,173.65,173.6,45.65778469]
[1748439790824,22.34916737,173.63,173.59,18.64964886]
[1748439791247,22.34916737,173.63,173.62,26.0]
[1748439791556,22.34916737,173.63,173.57,7.8923]
[1748439791734,22.34916737,173.63,173.55,28.22293528]
[1748439791735,28.10963693,173.6,173.56,18.64964886]
[1748439792053,28.10929525,173.61,173.59,26.0]
[1748439792848,28.1089083,173.62,173.61,26.0]
[1748439793037,28.10857549,173.63,173.59,40.99881623]
[1748439793238,5.75910437,173.64,173.63,26.0]
[1748439793552,28.10827174,173.64,173.63,26.0]
[1748439794334,28.10827174,173.64,173.61,26.0]
[1748439794536,22.34916737,173.63,173.61,26.0]
[1748439795974,28.10855619,173.63,173.61,26.0]
[1748439796645,28.10855619,173.63,173.61,26.0]
[1748439798058,22.34916737,173.62,173.61,26.0]
[1748439799270,28.10887247,173.62,173.61,26.0]
[1748439799646,22.34916737,173.62,173.61,26.0]
[1748439799951,28.10887247,173.62,173.61,26.0]
[1748439800469,28.10887247,173.62,173.59,26.0]
[1748439800769,22.34916737,173.6,173.59,26.0]
[1748439802244,14.39709935,173.65,173.59,26.0]
[1748439802449,22.34916737,173.6,173.59,26.0]
[1748439803696,28.10953603,173.6,173.55,2.89787456]
[1748439803882,22.34916737,173.57,173.54,18.64964886]
[1748439804194,22.34916737,173.57,173.56,26.0]
[1748439804501,5.76036866,173.6,173.54,18.64964886]
[1748439804801,22.34916737,173.57,173.56,26.0]
[1748439804978,22.34916737,173.57,173.53,18.64964886]
[1748439805173,22.34916737,173.61,173.56,26.0]
[1748439805378,22.34916737,173.57,173.56,26.0]
[1748439805885,22.34916737,173.57,173.53,26.0]
[1748439806087,14.40092165,173.6,173.53,26.0]
[1748439806088,22.34916737,173.54,173.53,26.0]
[1748439806901,22.34916737,173.54,173.53,44.64964886]
[1748439807105,28.11161223,173.54,173.51,4.60595244]
[1748439807316,22.34916737,173.53,173.51,18.64964886]
[1748439807525,5.76136429,173.57,173.54,26.0]
[1748439807699,22.34916737,173.55,173.54,26.0]